[Event "Israeli Team-ch 2023"]
[Site "Petah Tikva"]
[Date "2023.05.12"]
[Round "11.28"]
[White "Bitensky, Igor"]
[Black "Bakalchuk, Johnatan"]
[Result "1-0"]
[ECO "B22"]
[WhiteElo "2370"]
[BlackElo "2442"]
[Annotator "TA"]
[PlyCount "91"]
[EventDate "2023.01.13"]
[EventCountry "ISR"]
[SourceTitle "playchess.com"]
[Source "ChessBase"]
[SourceQuality "1"]
[TimeControl "40/5400+30:1800+30"]

{[%evp 14,91,16,16,13,20,17,23,29,9,20,17,17,12,0,0,0,4,31,26,24,0,45,13,55,24,41,31,63,63,125,110,175,54,58,66,62,12,12,0,60,62,64,9,6,7,11,14,101,92,127,125,245,235,248,193,258,240,331,278,805,921,858,281,263,94,464,486,435,435,617,594,640,626,618,604,5265,5072,5019,2541]} 1. e4 {[%emt 0:03:08]} c5 {[%emt 0:00:46]} 2. Nf3 {[%emt 0:01:16]} g6 {[%emt 0:00:08]} 3. Bc4 {[%emt 0:02:43]} Bg7 {[%emt 0:00:09]} 4. c3 {[%emt 0:01:08]} d6 {[%emt 0:00:13]} 5. d4 {[%emt 0:01:20]} cxd4 {[%emt 0:00:24]} 6. cxd4 {[%emt 0:00:11]} Nf6 {[%emt 0:00:26]} 7. Nc3 {[%emt 0:00:17]} O-O {[%emt 0:01:03]} 8. Bb3 {[%emt 0:02:38]} Nc6 {[%emt 0:02:41] B22: Sicilian: 2 c3.} 9. h3 {[%emt 0:03:04] Prevents Bg4} b5 {[%emt 0:00:28][%cal Bb7b5,Bb5b4][%mdl 32]} 10. O-O {[%emt 0:02:08]} (10. Nxb5 Nxe4 11. O-O Ba6 $15) 10... b4 {[%emt 0:02:02] White has an edge.} 11. Nd5 {[%emt 0:02:19]} Nxd5 {[%emt 0:07:14]} 12. Bxd5 {[%emt 0:01:16]} ({Of course not} 12. exd5 Na5 $11) 12... Bb7 {[%emt 0:00:19] [#]} 13. a3 $146 {[%emt 0:11:34]} ({Predecessor:} 13. Be3 Rc8 14. Qa4 e6 15. Bb3 Na5 16. Nd2 d5 17. Rfc1 Nxb3 18. axb3 Rxc1+ 19. Rxc1 dxe4 20. Qxa7 {0-1 Van Foreest,J (2701)-Carlsen,M (2847) Carlsen Inv Prelim rapid 2021 (1)}) 13... e6 {[%emt 0:05:31]} 14. Ba2 {[%emt 0:01:29]} bxa3 {[%emt 0:17:54]} 15. bxa3 {[%emt 1:03:29]} Na5 16. Re1 d5 17. e5 {[%cal Be4e5,Be5f6][%mdl 32]} (17. Bg5 $5 {[%cal Rg5d8]} Qd6 18. Bd2 dxe4 19. Bb4 $11) 17... Qd7 18. Nh2 Rfc8 19. Ng4 Qe7 20. Qf3 Rc2 21. Nf6+ Bxf6 (21... Kh8 $1 $14) 22. exf6 $16 Qf8 (22... Qd8 $16 {was necessary.}) 23. Qd3 (23. h4 $1 $18) 23... Rac8 $14 24. Bd2 {Prevents R8c3.} Qd8 {[%cal Od8f6]} 25. Re2 ({White should try} 25. Bb4 $1 $14) 25... R2c6 $11 26. Qf3 Ba6 {Black is weak on the dark squares} ({Better is} 26... Nc4 $1 $11) 27. Ree1 $14 Rc2 28. Bb4 (28. Qf4 $14 Kh8 29. Bxd5) 28... Nc6 $132 {[%mdl 2048] Black is not holding back} 29. Qf4 {[%cal Oa2d5] And now Bxd5! would win.} Nxb4 30. axb4 {[%cal Oa2d5] aiming for Bxd5!} Bb5 (30... Re2 $11 {remains equal.}) 31. Bb1 $16 R2c7 {[#]} 32. h4 $1 {[%cal Bh3h4,Bh4h5][%mdl 32] White has more active pieces.} Kh8 (32... Qf8 $16) 33. Ra3 $18 Qf8 34. Qd2 a6 {[#]} (34... Kg8 $142) 35. h5 $1 {[%mdl 512]} Rc4 (35... gxh5 $2 36. Rg3 $18) (35... Kg8 36. Rf3) 36. Rh3 Kg8 $2 (36... Be8 37. Bd3 Rxb4 38. hxg6 {[%mdl 64] Deflection} (38. Bxa6 Ra8 $16) 38... fxg6 39. Rxe6 (39. Bxa6 Rcb8 $16) 39... Bf7) 37. hxg6 fxg6 38. Qg5 $2 (38. Bxg6 {[%cal Od2g5] White threatens Qg5! and mate.} Qxf6 39. Bxh7+ Kg7 40. Rf3 Qxf3 41. gxf3 Kxh7 42. Rxe6 Rg8+ 43. Kh2) 38... Be8 (38... Qf7 $2 39. Rxe6 Rc1+ 40. Kh2 Qc7+ 41. f4 $18) 39. Ba2 $2 (39. Rxe6 $2 {perishes.} Rc1+ 40. Kh2 Rxb1 $17) (39. Bd3 $18) 39... Rxd4 $2 {[%mdl 8192] Black cannot hold the game after this.} (39... Rc2 $16 {is more resistant.}) 40. Rxe6 {[%cal Be1e6,Be6e7,Be7f7][%mdl 32] White is clearly winning.} Bf7 41. Re7 ({Weaker is} 41. Rxa6 Rb8 42. Bb3 Rdxb4 $16) 41... Rd8 (41... Rd1+ $142 42. Kh2 Rd4) 42. Bb3 {Strongly threatening f4.} Rc8 43. Kh2 Rc6 44. f4 {[%cal Ob4b5] Black must now prevent b5!} Rc1 45. Qe5 Re4 {[#]} 46. Rxf7 $1 {[%emt 0:00:00][%mdl 576] Remove Defender, Double Attack. A cool game by Bitensky.   Weighted Error Value: White=0.26 (precise) /Black=0.48} 1-0

[Event "Israeli Team-ch 2023"]
[Site "Petah Tikva"]
[Date "2023.05.12"]
[Round "11.29"]
[White "Mordechai, Hanan"]
[Black "Katkov, Michelle"]
[Result "1-0"]
[ECO "A07"]
[WhiteElo "2353"]
[BlackElo "2220"]
[Annotator "TA"]
[PlyCount "129"]
[EventDate "2023.01.13"]
[EventCountry "ISR"]
[SourceTitle "playchess.com"]
[Source "ChessBase"]
[SourceQuality "1"]
[TimeControl "40/5400+30:1800+30"]

{[%evp 11,129,10,10,0,8,24,22,6,16,18,20,0,22,11,28,22,33,43,35,34,48,43,42,36,29,31,33,18,33,16,64,38,59,57,50,57,166,157,170,85,82,58,57,43,45,16,89,89,123,117,212,205,289,137,134,16,15,-83,-83,-66,-75,-97,-59,-227,-220,-206,-138,-134,-129,-175,-117,-141,-170,-239,-181,-347,-244,-237,-229,-302,-275,-363,-347,-325,-277,-277,-279,-304,-300,-288,-180,-165,-112,-97,-105,-180,-70,-76,-42,-42,-50,-33,-39,-52,0,-4,6,-14,-14,-14,-14,-14,-14,-14,-14,-14,0,-16,29981,29982]} 1. Nf3 {[%emt 0:00:03]} Nf6 {[%emt 0:00:10]} 2. g3 {[%emt 0:00:01]} d5 {[%emt 0:00:10]} 3. Bg2 {[%emt 0:00:12]} c6 {[%emt 0:00:17]} 4. O-O {[%emt 0:00:05]} Bg4 {[%emt 0:00:05]} 5. h3 {[%emt 0:00:04]} Bh5 {[%emt 0:00:28]} 6. d3 {[%emt 0:00:05]} Nbd7 {[%emt 0:00:12]} 7. Qe1 {[%emt 0:00:13] A07: Réti Opening: New York and Capablanca Systems.} e5 {[%emt 0:00:17]} 8. e4 {[%emt 0:00:05]} dxe4 {[%emt 0:00:08]} 9. dxe4 {[%emt 0:00:01] The position is equal.} Bc5 {[%emt 0:01:02]} 10. a4 {[%emt 0:00:14]} a5 {[%emt 0:01:18]} 11. Na3 {[%emt 0:00:23]} O-O {[%emt 0:00:40]} 12. Nc4 {[%emt 0:01:11]} Qc7 {[%emt 0:02:39]} 13. Bd2 {[%emt 0:00:13][%cal Rd2a5]} b6 {[%emt 0:01:56]} 14. Nh4 {[%emt 0:00:59]} Rfe8 {[%emt 0:06:00]} 15. Kh2 {[%emt 0:02:41]} Bg6 {[%emt 0:04:26] [#]} 16. f3 $146 {[%emt 0:09:09]} ({Predecessor:} 16. Nxg6 hxg6 17. Qe2 Bb4 18. Bg5 Bf8 19. Rad1 Nc5 20. Bxf6 gxf6 21. b3 Rad8 22. h4 Rxd1 23. Rxd1 {0-1 Postny,E (2600)-Moskalenko,A (2515) Titled Tuesday intern op 29th Sept blitz 2020 (10)}) 16... Nf8 {[%emt 0:02:47]} 17. Be3 {[%emt 0:09:20]} Ne6 {[%emt 0:07:13]} 18. Bxc5 {[%emt 0:07:29]} Nxc5 {[%emt 0:00:41]} 19. Qe3 {[%emt 0:00:08][%cal Ob2b4]} Nfd7 {[%emt 0:10:50]} 20. Rfd1 {[%emt 0:02:24]} Nf8 {[%emt 0:21:57]} (20... Red8 $11) 21. Qc3 {[%emt 0:00:30]} Nfd7 {[%emt 0:00:30]} 22. b3 {[%emt 0:00:30]} Red8 {[%emt 0:00:30]} 23. Rd2 {[%emt 0:00:30]} Ne6 {[%emt 0:00:30]} ({Black should try} 23... Rab8 $14) 24. Rad1 $1 $18 {[%emt 0:00:30][%cal Od2d7]} Nec5 {[%emt 0:00:30]} 25. Rd6 {[%emt 0:00:30]} (25. Nd6 $18) 25... Re8 {[%emt 0:14:33]} 26. Qd2 {[%emt 0:42:18][%cal Rd6d7]} Nf8 {[%emt 0:00:30]} 27. Nxg6 {[%emt 0:00:30]} hxg6 {[%emt 0:08:38]} 28. Qc3 {[%emt 0:02:02]} Nfd7 {[%emt 0:05:15]} (28... g5 $11) 29. h4 $16 {[%emt 0:01:32]} b5 {[%emt 0:04:08]} 30. Ne3 {[%emt 0:07:44] Black must now prevent axb5.} bxa4 {[%emt 0:01:54]} (30... b4 $16 31. Qc4 Re6) 31. Bh3 $18 {[%emt 0:01:08][%cal Rh3d7]} Red8 {[%emt 0:00:30] Black is weak on the light squares} (31... Rad8 $142 32. Bxd7 Nxd7) 32. bxa4 {[%emt 0:00:30]} (32. Bxd7 $6 Nxd7 33. Rxc6 (33. Qxc6 Qxc6 34. Rxc6 axb3 $14) 33... Qb8 34. bxa4 Nf6 35. Rxd8+ Qxd8 $18) (32. h5 $18 {and White stays clearly on top.}) 32... Nxa4 $16 {[%emt 0:03:27]} 33. Qd2 {[%emt 0:04:07] White has more active pieces.} (33. Rxd7 $2 Nxc3 34. Rxc7 Nxd1 $19) (33. Qxc6 $16 Qxc6 34. Rxc6) 33... Nb2 $1 $11 {[%emt 0:01:52]} 34. Rb1 {[%emt 0:04:06]} (34. Rxd7 $2 Nxd1 35. Qxd1 Rxd7 36. Qxd7 (36. Bxd7 $2 {loses.} Rd8 $19) 36... Qxd7 37. Bxd7 a4 38. Bxc6 a3 $19) (34. Ra1 $1 $11 {remains equal.} Nb6 35. Rxd8+ Rxd8 36. Qxa5) 34... Nc5 $17 {[%emt 0:00:43]} 35. Rxd8+ Rxd8 {[%emt 0:00:02]} 36. Qc3 {[%emt 0:01:24]} Nba4 {[%emt 0:00:43]} 37. Qc4 {[%emt 0:00:15]} (37. Qe1 $15) 37... Rd4 $19 {[%emt 0:00:22]} 38. Qf1 {[%emt 0:01:01]} Rd2+ {[%emt 0:00:12]} 39. Bg2 {[%emt 0:00:26]} Nc3 $36 {[%emt 0:01:09][%mdl 2048] Black is in control. A dynamic duo of knights.} 40. Ra1 {[%emt 0:00:49]} (40. Rc1 $17 Rd4 41. Ra1) 40... Rd4 {[%emt 0:00:29]} (40... a4 $19 41. Qc4 Qa5) 41. h5 {[%emt 0:06:40][%mdl 64] Deflection} gxh5 {[%emt 0:01:22]} 42. Nf5 {[%emt 0:00:48]} (42. Qe1 $142 N5a4 43. Kh1) 42... Ra4 {[%emt 0:03:42]} 43. Rc1 $2 {[%emt 0:04:53]} (43. Qe1 {was worth a try.} Nb5 44. Rxa4 Nxa4 45. Qe3) 43... Rb4 {[%emt 0:03:57]} 44. Qe1 {[%emt 0:01:43]} Nb5 {[%emt 0:01:21]} 45. Qd2 {[%emt 0:06:12]} Ne6 {[%emt 0:01:31] Prevents Qg5} 46. c3 {[%emt 0:02:42]} Rb3 {[%emt 0:01:05]} 47. Bf1 {[%emt 0:01:26]} Qd8 {[%emt 0:01:38]} 48. Qxd8+ {[%emt 0:04:04]} Nxd8 {[%emt 0:00:06]} 49. Rd1 {[%emt 0:00:02]} Ne6 {[%emt 0:01:35]} ({Much less strong is} 49... Nxc3 50. Rxd8+ Kh7 51. Rd7 $18) 50. Ne7+ {[%emt 0:00:25]} Kf8 {[%emt 0:01:41]} 51. Nxc6 {[%emt 0:00:08]} Nxc3 {[%emt 0:00:39]} (51... Rb2+ $19 52. Kh1 a4 53. Bxb5 Rxb5) 52. Rd7 $17 {[%emt 0:03:02]} Rb2+ {[%emt 0:02:05]} 53. Kg1 {[%emt 0:00:37] [#]} (53. Kh1 $17 {was called for.}) 53... a4 {[%emt 0:07:12]} (53... f6 $1 $19 {...a4 would be deadly.} 54. Ra7 Rb1 55. Ra8+ Kf7) 54. Ra7 $15 {[%emt 0:00:39]} Kg8 {[%emt 0:00:56] Threatens to win with ...Kh7.} 55. Nxe5 {[%emt 0:00:34]} Ng5 {[%emt 0:01:19]} 56. Bc4 {[%emt 0:03:19]} Kh7 {[%emt 0:01:54] aiming for ...f6.} 57. Bxf7 {[%emt 0:00:36]} Nxf7 {[%emt 0:00:19]} (57... Nh3+ $1 $15 {is superior.} 58. Kf1 Rf2+ 59. Ke1 Re2+ 60. Kf1 Rf2+ 61. Ke1 Re2+ 62. Kf1 Rf2+) 58. Nxf7 {[%emt 0:00:06][%mdl 4096] Endgame KRN-KRN} Rb3 {[%emt 0:06:21]} 59. Ng5+ {[%emt 0:01:26]} Kg6 {[%emt 0:00:18]} 60. Ne6 {[%emt 0:02:58]} a3 {[%emt 0:00:11] Hoping for ...a2.} 61. Nf8+ $1 {[%emt 0:02:36]} Kf6 $1 {[%emt 0:00:29]} 62. Nd7+ {[%emt 0:00:05]} Kg5 {[%emt 0:00:43]} 63. Kg2 $1 {[%emt 0:00:52]} a2 {[%emt 0:00:18] Strongly threatening ...Rb1.} 64. Ra6 {[%emt 0:00:36] Intending f4+ and mate.} g6 $2 {[%emt 0:01:13][%mdl 8192] [#]} (64... h4 $11 65. f4+ Kh5) 65. Nf8 $1 {[%emt 0:00:14] A wild game.   Weighted Error Value: White=0.26 (precise) /Black=0.36} 1-0

[Event "Israeli Team-ch 2023"]
[Site "Petah Tikva"]
[Date "2023.05.12"]
[Round "11.30"]
[White "Stolyarsky, Yegor"]
[Black "Karp, Ilya"]
[Result "1/2-1/2"]
[ECO "E62"]
[WhiteElo "2051"]
[BlackElo "2392"]
[Annotator "TA"]
[PlyCount "88"]
[EventDate "2023.01.13"]
[EventCountry "ISR"]
[SourceTitle "playchess.com"]
[Source "ChessBase"]
[SourceQuality "1"]
[TimeControl "40/5400+30:1800+30"]

{[%evp 19,88,35,31,31,43,47,52,53,52,48,54,46,50,31,33,18,15,15,16,22,82,41,50,37,87,36,40,37,40,35,36,44,55,35,54,18,16,16,16,16,16,16,16,16,18,8,25,25,257,250,242,0,0,0,0,0,22,22,23,26,28,0,0,0,0,0,-8,0,0,0,0]} 1. d4 {[%emt 0:00:33]} Nf6 {[%emt 0:00:06]} 2. c4 {[%emt 0:00:54]} g6 {[%emt 0:00:07]} 3. Nf3 {[%emt 0:00:21]} Bg7 {[%emt 0:00:20]} 4. g3 {[%emt 0:00:23]} O-O {[%emt 0:00:34]} 5. Bg2 {[%emt 0:00:10]} d6 {[%emt 0:00:12]} 6. O-O {[%emt 0:00:45]} Nc6 {[%emt 0:00:03]} 7. Nc3 {[%emt 0:01:35][%cal Bb1c3,Bc3d5,Bd5c7][%mdl 32]} e5 {[%emt 0:00:05]} 8. dxe5 {[%emt 0:00:20]} dxe5 {[%emt 0:00:05]} 9. Bg5 {[%emt 0:06:03]} h6 {[%emt 0:00:16]} 10. Qxd8 {[%emt 0:02:39]} Rxd8 {[%emt 0:00:02]} 11. Bxf6 {[%emt 0:00:47] E62: King's Indian: Fianchetto: 6...c6 and Panno Variation (6...Nc6) without ...a6.} Bxf6 {[%emt 0:00:02]} 12. Nd5 {[%emt 0:00:27]} Kg7 {[%emt 0:00:05]} 13. Nxc7 {[%emt 0:11:34] White is slightly better.} Rb8 {[%emt 0:00:29]} 14. e4 {[%emt 0:30:02]} Be7 {[%emt 0:02:23]} 15. Nd5 {[%emt 0:07:28]} Bc5 {[%emt 0:00:27]} 16. a3 {[%emt 0:05:53]} a5 {[%emt 0:33:07]} 17. b4 {[%mdl 64] Deflection} axb4 {[%emt 0:00:30]} 18. axb4 Nxb4 {[%emt 0:00:30]} 19. Nxe5 {[%emt 0:08:41] [#]} f6 $146 {[%emt 0:00:30]} (19... Bd4 $11 {keeps the balance.} 20. Nxb4 Bxe5) ({Predecessor:} 19... Bd4 20. Nxb4 Bxe5 21. Rab1 Be6 22. Nd5 Rdc8 23. Rfc1 Rc5 24. Bf1 Ra5 25. Rc2 Rba8 26. Rxb7 {½-½ Strybuk,A (2263)-Matinian,N (2460) Cheliabinsk Variation-A 2022 (1)}) 20. Nf3 {[%emt 0:00:30] White is more active.} Nd3 {[%emt 0:00:30]} 21. Ra2 {[%emt 0:00:30]} (21. Rad1 $5 {[%cal Rd1d3]} Ne5 22. Nd2 $14 (22. Nxe5 fxe5 23. Kh1 Ra8 $14)) 21... Rd6 {[%emt 0:00:30]} ({Black should play} 21... b5 $14) 22. Rd2 {[%emt 0:00:30]} (22. Rb1 $16) 22... Ne5 $14 {[%emt 0:00:30]} 23. Nxe5 {[%emt 0:00:30]} fxe5 {[%emt 0:00:30]} 24. h4 {[%emt 0:00:30]} Ra8 {[%emt 0:00:30]} 25. Kh2 {[%emt 0:00:30]} Ra4 {[%emt 0:00:30]} 26. Rc2 {[%emt 0:00:30]} g5 {[%emt 0:00:30]} 27. f4 {[%emt 0:00:30]} gxf4 {[%emt 0:00:30]} 28. gxf4 {[%emt 0:00:30]} exf4 {[%emt 0:00:30]} 29. e5 {[%emt 0:00:30]} Rg6 {[%emt 0:00:30]} 30. Bf3 {[%emt 0:00:30]} Bf5 {[%emt 0:00:30][%mdl 64] Deflection} 31. Rb2 {[%emt 0:00:30]} Rxc4 {[%emt 0:00:30]} 32. Rxb7+ {[%emt 0:00:30]} Kf8 {[%emt 0:00:30]} 33. Rb8+ {[%emt 0:00:30]} Kf7 $2 {[%emt 0:00:30] [#]} (33... Kg7 $11 {and Black is okay.}) 34. Nxf4 $1 $18 {[%emt 0:00:30][%mdl 576] White threatens Bd5+ and mate. Clearance} Rc2+ {[%emt 0:00:30]} 35. Ng2 $2 {[%emt 0:00:30]} ({White must play} 35. Kh1 $18 Rb6 36. e6+ Rxe6 37. Nxe6 Bxe6 38. Bd5+ Rf2 39. Rxf2+ Bxf2 40. Bxe6+ Kxe6 41. Re8+ Kf7 42. Re4) 35... Ke6 $11 {[%emt 0:00:30]} 36. Re8+ {[%emt 0:00:30]} Kd7 {[%emt 0:00:30]} 37. Rb8 {[%emt 0:00:30]} Kc7 {[%emt 0:00:30]} 38. Rb7+ {[%emt 0:00:30]} Kc8 {[%emt 0:00:30]} 39. Rf7 {[%emt 0:00:30]} Be6 {[%emt 0:00:30] This pair of bishops is nice.} 40. Rf6 {[%emt 0:00:30]} Rxf6 {[%emt 0:00:30] The position is equal.} 41. exf6 {[%emt 0:30:30]} Kd7 {[%emt 0:30:30]} 42. Kg3 {[%emt 0:00:30]} Bd6+ {[%emt 0:00:30]} 43. Nf4 {[%emt 0:00:30]} Rc8 {[%emt 0:00:30] Hoping for ...Rg8+.} 44. Bh5 {[%emt 0:00:30]} Rf8 {[%emt 0:00:30] Weighted Error Value: White=0.15 (very precise) /Black=0.15 (very precise)} 1/2-1/2

[Event "Israeli Team-ch 2023"]
[Site "Petah Tikva"]
[Date "2023.05.12"]
[Round "11.31"]
[White "Sokolovsky, Yahli"]
[Black "Yaniv, Yuval"]
[Result "1-0"]
[ECO "C84"]
[WhiteElo "2431"]
[BlackElo "2366"]
[Annotator "TA"]
[PlyCount "83"]
[EventDate "2023.01.13"]
[EventCountry "ISR"]
[SourceTitle "playchess.com"]
[Source "ChessBase"]
[SourceQuality "1"]
[TimeControl "40/5400+30:1800+30"]

{[%evp 13,83,10,20,0,6,6,9,0,14,0,0,0,0,0,0,0,0,0,0,0,0,0,0,-7,24,22,23,16,56,52,76,50,103,68,101,99,131,122,124,122,119,125,129,108,143,88,239,237,212,220,925,916,29987,29988,29990,29991,29991,29989,29992,29983,29983,29984,29984,29985,29985,29986,29994,29995,29995,29986,29994,29990]} 1. e4 {[%emt 0:00:03]} e5 {[%emt 0:00:45]} 2. Nf3 {[%emt 0:00:08]} Nc6 {[%emt 0:00:09]} 3. Bb5 {[%emt 0:00:06]} a6 {[%emt 0:00:12]} 4. Ba4 {[%emt 0:00:07]} Nf6 {[%emt 0:00:09]} 5. O-O {[%emt 0:01:24]} Be7 {[%emt 0:00:42]} 6. d3 {[%emt 0:01:57]} b5 {[%emt 0:00:30]} 7. Bb3 {[%emt 0:00:08]} d6 {[%emt 0:00:06]} 8. Bd2 {[%emt 0:03:52] 8.c3 is the modern continuation. C84: Closed Ruy Lopez: Unusual White 6th moves.} Bg4 {[%emt 0:02:29]} 9. c3 {[%emt 0:03:07] Wards off Nd4} Na5 {[%emt 0:00:53]} 10. Bc2 {[%emt 0:00:44] The position is equal.} c5 {[%emt 0:00:30]} 11. h3 {[%emt 0:01:09]} Bh5 {[%emt 0:00:30]} 12. Re1 {[%emt 0:07:33]} O-O {[%emt 0:03:00]} 13. Bc1 {[%emt 0:06:07]} Qc7 {[%emt 0:01:58]} 14. Nbd2 {[%emt 0:00:46][%cal Bb1d2,Bd2f1,Bf1g3,Bg3f5][%mdl 32]} Rad8 {[%emt 0:01:19]} 15. Qe2 {[%emt 0:05:08]} Rfe8 {[%emt 0:04:40]} 16. Nf1 {[%emt 0:02:49]} d5 {[%emt 0:07:22]} 17. Ng3 {[%emt 0:03:17]} Bg6 {[%emt 0:00:55]} 18. Nh4 {[%emt 0:02:18] [#]} dxe4 $146 {[%emt 0:11:24]} ({Predecessor:} 18... d4 19. Nhf5 Bf8 20. Bg5 Re6 21. cxd4 exd4 22. Rad1 h6 23. Bxf6 Rxf6 24. Qg4 Nc6 {0-1 Nihal,S (2670)-Ding,L (2811) Speed Chess Chess.com INT blitz 2022 (2.14)}) 19. dxe4 {[%emt 0:22:27]} c4 {[%emt 0:00:30]} 20. Ngf5 {[%emt 0:00:30]} Bf8 {[%emt 0:00:30]} 21. Bg5 {[%emt 0:00:30]} Re6 {[%emt 0:00:30]} 22. Red1 {[%emt 0:00:30][%cal Be1d1,Bd1d2,Bd2d7][%mdl 32]} Rb8 {[%emt 0:00:30]} (22... Rxd1+ $14 23. Rxd1 Bc5) 23. Rd2 {[%emt 0:00:30]} b4 {[%emt 0:00:30]} 24. Rad1 {[%emt 0:00:30]} b3 {[%emt 0:00:30]} 25. axb3 {[%emt 0:00:30]} Nxb3 {[%emt 0:00:30]} 26. Bxb3 {[%emt 0:00:30]} cxb3 {[%emt 0:00:30]} 27. Bxf6 {[%emt 0:00:30]} Rxf6 {[%emt 0:00:30]} 28. Rd7 {[%emt 0:00:30]} Qb6 {[%emt 0:00:30]} 29. Qc4 {[%emt 0:00:30] White has more active pieces.} (29. Nxg6 $142 hxg6 30. Ne3) 29... Qb5 $2 {[%emt 0:00:30] [#] This costs Black the game.} (29... Rc6 $16 {is a better defense.} 30. Qd3 Re6) 30. Qc7 $1 $18 {[%emt 0:00:30] Intending Rd8 and mate.} Bxf5 {[%emt 0:00:30]} 31. Nxf5 {[%emt 0:00:30] White threatens Rd8 and mate.} g6 $2 {[%emt 0:00:30]} (31... Qb6 32. Qxe5 Rc8) 32. Rd8 {[%emt 0:00:30] Threatening mate with Qe7.} Rxd8 {[%emt 0:00:30]} 33. Rxd8 {[%emt 0:00:30] White mates.} ({Less strong is} 33. Qxd8 Qb6 34. Ne3 Kg7 $16) 33... gxf5 {[%emt 0:00:30]} 34. Qe7 {[%emt 0:00:30][%csl Gd8][%cal Re7f8]} Kg7 {[%emt 0:00:30]} 35. Qxf8+ {[%emt 0:00:30] KQR-KQR} Kg6 {[%emt 0:00:30]} 36. Qg8+ {[%emt 0:00:30]} Kh6 {[%emt 0:00:30]} 37. h4 {[%emt 0:00:30][%csl Gh4][%cal Rg8g5]} Rg6 {[%emt 0:00:30]} 38. Qf8+ {[%emt 0:00:30]} Kh5 {[%emt 0:00:30]} 39. Qxf7 {[%emt 0:00:30]} Kxh4 {[%emt 0:00:30]} 40. Qxh7+ {[%emt 0:00:30]} Kg5 {[%emt 0:00:30]} 41. exf5 {[%emt 0:30:30][%mdl 64] [#] Remove Defender} Kxf5 {[%emt 0:30:30]} 42. Qh5+ {[%emt 0:00:30][%mdl 64] Decoy.   Weighted Error Value: White=0.07 (flawless) /Black=0.32} 1-0